fUSD/lending_fUSD_20240727
["ID","MTS","AMOUNT","RATE_DAILY","PERIOD"]
[333396874,1722103842787,-596.92599145,0.00010999,2]
[333396875,1722103842796,-500.0,0.00010999,2]
[333396876,1722103842805,-500.0,0.00010999,2]
[333396877,1722103842815,-500.0,0.00010999,2]
[333396878,1722103842824,-500.0,0.00010999,2]
[333396879,1722103842833,-500.0,0.00010999,2]
[333396880,1722103842842,-500.0,0.00010999,2]
[333396881,1722103842852,-500.0,0.00010999,2]
[333396882,1722103842861,-500.0,0.00010999,2]
[333396883,1722103842870,-500.0,0.00010999,2]
[333396884,1722103842879,-500.0,0.00010999,2]
[333396885,1722103842889,-500.0,0.00010999,2]
[333396886,1722103842898,-500.0,0.00010999,2]
[333396887,1722103842907,-500.0,0.00010999,2]
[333396888,1722103842916,-500.0,0.00010999,2]
[333396889,1722103842926,-580.7,0.00010999,2]
[333396890,1722103842935,-500.0,0.00010999,2]
[333396891,1722103842945,-500.0,0.00010999,2]
[333396892,1722103842954,-500.0,0.00010999,2]
[333396893,1722103842963,-500.0,0.00010999,2]
[333396894,1722103842972,-500.0,0.00010999,2]
[333396895,1722103842981,-500.0,0.00010999,2]
[333396896,1722103842990,-500.0,0.00010999,2]
[333396897,1722103842999,-500.0,0.00010999,2]
[333396898,1722103843008,-500.0,0.00010999,2]
[333396899,1722103843018,-500.0,0.00010999,2]
[333396900,1722103843027,-500.0,0.00010999,2]
[333396901,1722103843037,-500.0,0.00010999,2]
[333396902,1722103843046,-502.72,0.00010999,2]
[333396903,1722103843055,-500.0,0.00010999,2]
[333396904,1722103843065,-500.0,0.00010999,2]
[333396905,1722103843074,-500.0,0.00010999,2]
[333396906,1722103843083,-500.0,0.00010999,2]
[333396907,1722103843093,-500.0,0.00010999,2]
[333396908,1722103843102,-500.0,0.00010999,2]
[333396909,1722103843111,-531.86,0.00010999,2]
[333396910,1722103843120,-500.0,0.00010999,2]
[333396911,1722103843129,-500.0,0.00010999,2]
[333396912,1722103843139,-500.0,0.00010999,2]
[333396913,1722103843148,-500.0,0.00010999,2]
[333396914,1722103843157,-500.0,0.00010999,2]
[333396915,1722103843167,-500.0,0.00010999,2]
[333396916,1722103843178,-500.0,0.00010999,2]
[333396917,1722103843188,-500.0,0.00010999,2]
[333396918,1722103843197,-500.0,0.00010999,2]
[333396919,1722103843207,-500.0,0.00010999,2]
[333396920,1722103843216,-500.0,0.00010999,2]
[333396921,1722103843226,-500.0,0.00010999,2]
[333396922,1722103843235,-500.0,0.00010999,2]
[333396923,1722103843244,-500.0,0.00010999,2]
[333396924,1722103843254,-417.04,0.00010999,2]
[333396925,1722103843263,-500.0,0.00010999,2]
[333396926,1722103843273,-500.0,0.00010999,2]
[333396927,1722103843282,-500.0,0.00010999,2]
[333396928,1722103843292,-500.0,0.00010999,2]
[333396929,1722103843301,-500.0,0.00010999,2]
[333396930,1722103843310,-500.0,0.00010999,2]
[333396931,1722103843320,-500.0,0.00010999,2]
[333396932,1722103843330,-500.0,0.00010999,2]
[333396933,1722103843339,-500.0,0.00010999,2]
[333396934,1722103843349,-500.0,0.00010999,2]
[333396935,1722103843358,-500.0,0.00010999,2]
[333396936,1722103843367,-500.0,0.00010999,2]
[333396937,1722103843377,-500.0,0.00010999,2]
[333396938,1722103843387,-500.0,0.00010999,2]
[333396939,1722103843397,-500.0,0.00010999,2]
[333396940,1722103843407,-500.0,0.00010999,2]
[333396941,1722103843417,-491.73,0.00010999,2]
[333396942,1722103843431,-342.01,0.00010999,2]
[333396943,1722103843441,-525.58,0.00010999,2]
[333396944,1722103843451,-500.0,0.00010999,2]
[333396945,1722103843464,-500.0,0.00010999,2]
[333396946,1722103843473,-500.0,0.00010999,2]
[333396947,1722103843483,-500.0,0.00010999,2]
[333396948,1722103843493,-500.0,0.00010999,2]
[333396949,1722103843503,-627.5,0.00010999,2]
[333396950,1722103843513,-343.91,0.00010999,2]
[333396951,1722103843523,-500.0,0.00010999,2]
[333396952,1722103843532,-500.0,0.00010999,2]
[333396953,1722103843542,-249.9,0.00010999,2]
[333396954,1722103843551,-500.0,0.00010999,2]
[333396955,1722103843560,-500.0,0.00010999,2]
[333396956,1722103843570,-381.43,0.00010999,2]
[333396957,1722103843579,-500.0,0.00010999,2]
[333396958,1722103843588,-500.0,0.00010999,2]
[333396959,1722103843598,-392.73,0.00010999,2]
[333396960,1722103843608,-500.0,0.00010999,2]
[333396961,1722103843617,-500.0,0.00010999,2]
[333396962,1722103843626,-500.0,0.00010999,2]
[333396963,1722103843636,-500.0,0.00010999,2]
[333396964,1722103843645,-500.0,0.00010999,2]
[333396965,1722103843654,-500.0,0.00010999,2]
[333396966,1722103843666,-500.0,0.00010999,2]
[333396967,1722103843680,-500.0,0.00010999,2]
[333396968,1722103843690,-500.0,0.00010999,2]
[333396969,1722103843699,-163.03,0.00010999,2]
[333396970,1722103843709,-500.0,0.00010999,2]
[333396971,1722103843718,-500.0,0.00010999,2]
[333396972,1722103843728,-308.18,0.00010999,2]
[333396973,1722103843737,-500.0,0.00010999,2]
[333396974,1722103843747,-500.0,0.00010999,2]
[333396975,1722103843756,-620.54,0.00010999,2]
[333396976,1722103843765,-500.0,0.00010999,2]
[333396977,1722103843774,-500.0,0.00010999,2]
[333396978,1722103843784,-500.0,0.00010999,2]
[333396979,1722103843793,-500.0,0.00010999,2]
[333396980,1722103843802,-500.0,0.00010999,2]
[333396981,1722103843812,-500.0,0.00010999,2]
[333396982,1722103843821,-500.0,0.00010999,2]
[333396983,1722103843831,-500.0,0.00010999,2]
[333396984,1722103843840,-500.0,0.00010999,2]
[333396985,1722103843849,-500.0,0.00010999,2]
[333396986,1722103843859,-500.0,0.00010999,2]
[333396987,1722103843868,-500.0,0.00010999,2]
[333396988,1722103843877,-523.34924572,0.00010999,2]
[333396989,1722103843886,-500.0,0.00010999,2]
[333396990,1722103843895,-201.83422718,0.00010999,2]
[333396991,1722103843905,-500.0,0.00010999,2]
[333396992,1722103843914,-500.0,0.00010999,2]
[333396993,1722103843926,-500.0,0.00010999,2]
[333396994,1722103843935,-500.0,0.00010999,2]
[333396995,1722103843944,-500.0,0.00010999,2]
[333396996,1722103843954,-500.0,0.00010999,2]
[333396997,1722103843963,-524.0,0.00010999,2]
[333396998,1722103843972,-185.01,0.00010999,2]
[333396999,1722103843981,-500.0,0.00010999,2]
[333397000,1722103843991,-595.84,0.00010999,2]
[333397001,1722103844000,-595.84,0.00010999,2]
[333397002,1722103844010,-595.84,0.00010999,2]
[333397003,1722103844019,-595.84,0.00010999,2]
[333397004,1722103844029,-595.84,0.00010999,2]
[333397005,1722103844039,-500.0,0.00010999,2]
[333397006,1722103844050,-595.84,0.00010999,2]
[333397007,1722103844059,-500.0,0.00010999,2]
[333397008,1722103844068,-595.84,0.00010999,2]
[333397009,1722103844077,-595.84,0.00010999,2]
[333397010,1722103844086,-500.0,0.00010999,2]
[333397011,1722103844096,-595.84,0.00010999,2]
[333397012,1722103844108,-500.0,0.00010999,2]
[333397013,1722103844117,-595.84,0.00010999,2]
[333397014,1722103844126,-500.0,0.00010999,2]
[333397015,1722103844136,-595.84,0.00010999,2]
[333397016,1722103844145,-595.84,0.00010999,2]
[333397017,1722103844155,-500.0,0.00010999,2]
[333397018,1722103844166,-595.84,0.00010999,2]
[333397019,1722103844177,-500.0,0.00010999,2]
[333397020,1722103844186,-500.0,0.00010999,2]
[333397021,1722103844195,-595.84,0.00010999,2]
[333397022,1722103844204,-500.0,0.00010999,2]
[333397023,1722103844215,-500.0,0.00010999,2]
[333397024,1722103844223,-595.84,0.00010999,2]
[333397025,1722103844236,-500.0,0.00010999,2]
[333397026,1722103844247,-595.84,0.00010999,2]
[333397027,1722103844258,-595.84,0.00010999,2]
[333397028,1722103844267,-382.93,0.00010999,2]
[333397029,1722103844276,-595.84,0.00010999,2]
[333397030,1722103844287,-595.84,0.00010999,2]
[333397031,1722103844296,-520.65,0.00010999,2]
[333397032,1722103844306,-595.84,0.00010999,2]
[333397033,1722103844317,-595.84,0.00010999,2]
[333397034,1722103844327,-595.84,0.00010999,2]
[333397035,1722103844493,-595.84,0.00010999,2]
[333397036,1722103844503,-595.92,0.00010999,2]
[333397037,1722103844512,-500.0,0.00010999,2]
[333397038,1722103844522,-500.0,0.00010999,2]
[333397039,1722103844531,-500.0,0.00010999,2]
[333397040,1722103844540,-500.0,0.00010999,2]
[333397041,1722103844550,-500.0,0.00010999,2]
[333397042,1722103844559,-500.0,0.00010999,2]
[333397043,1722103844568,-500.0,0.00010999,2]
[333397044,1722103844577,-504.04,0.00010999,2]
[333397045,1722103844587,-500.0,0.00010999,2]
[333397046,1722103844596,-591.76,0.00010999,2]
[333397047,1722103844605,-500.0,0.00010999,2]
[333397048,1722103844615,-504.04,0.00010999,2]
[333397049,1722103844624,-517.56,0.00010999,2]
[333397050,1722103844633,-500.0,0.00010999,2]
[333397051,1722103844643,-504.04,0.00010999,2]
[333397052,1722103844652,-500.0,0.00010999,2]
[333397053,1722103844663,-504.04,0.00010999,2]
[333397054,1722103844675,-552.02,0.00010999,2]
[333397055,1722103844686,-504.04,0.00010999,2]
[333397056,1722103844695,-504.04,0.00010999,2]
[333397057,1722103844706,-504.04,0.00010999,2]
[333397058,1722103844716,-504.04,0.00010999,2]
[333397059,1722103844726,-504.04,0.00010999,2]
[333397060,1722103844736,-504.04,0.00010999,2]
[333397061,1722103844746,-500.0,0.00010999,2]
[333397062,1722103844756,-504.04,0.00010999,2]
[333397063,1722103844765,-504.04,0.00010999,2]
[333397064,1722103844774,-500.0,0.00010999,2]
[333397065,1722103844784,-500.0,0.00010999,2]
[333397066,1722103844794,-504.04,0.00010999,2]
[333397067,1722103844803,-500.0,0.00010999,2]
[333397068,1722103844813,-542.74,0.00010999,2]
[333397069,1722103844823,-504.04,0.00010999,2]
[333397070,1722103844833,-504.04,0.00010999,2]
[333397071,1722103844842,-504.04,0.00010999,2]
[333397072,1722103844852,-504.04,0.00010999,2]
[333397073,1722103844861,-500.0,0.00010999,2]
[333397074,1722103844871,-504.04,0.00010999,2]
[333397075,1722103844880,-222.86,0.00010999,2]
[333397076,1722103844890,-504.04,0.00010999,2]
[333397077,1722103844900,-504.04,0.00010999,2]
[333397078,1722103844910,-504.04,0.00010999,2]
[333397079,1722103844920,-504.04,0.00010999,2]
[333397080,1722103844932,-504.04,0.00010999,2]
[333397081,1722103844942,-504.25881385,0.00010999,2]
[333397082,1722103844951,-500.0,0.00010999,2]
[333397083,1722103844961,-500.0,0.00010999,2]
[333397084,1722103844971,-500.0,0.00010999,2]
[333397085,1722103844980,-500.0,0.00010999,2]
[333397086,1722103844990,-504.88,0.00010999,2]
[333397087,1722103845000,-500.0,0.00010999,2]
[333397088,1722103845010,-500.0,0.00010999,2]
[333397089,1722103845019,-500.0,0.00010999,2]
[333397090,1722103845029,-500.0,0.00010999,2]
[333397091,1722103845038,-609.42,0.00010999,2]
[333397092,1722103845048,-209.64078425,0.00010999,2]
[333397093,1722103845057,-641.06,0.00010999,2]
[333397094,1722103845067,-500.0,0.00010999,2]
[333397095,1722103845076,-460.51357745,0.00010999,2]
[333397096,1722103845085,-500.0,0.00010999,2]
[333397097,1722103845095,-500.0,0.00010999,2]
[333397098,1722103845105,-526.61,0.00010999,2]
[333397099,1722103845114,-584.69,0.00010999,2]
[333397100,1722103845124,-500.0,0.00010999,2]
[333397101,1722103845134,-500.0,0.00010999,2]
[333397102,1722103845143,-241.73,0.00010999,2]
[333397103,1722103845153,-500.0,0.00010999,2]
[333397104,1722103845162,-500.0,0.00010999,2]
[333397105,1722103845172,-500.0,0.00010999,2]
[333397106,1722103845182,-500.0,0.00010999,2]
[333397107,1722103845191,-500.0,0.00010999,2]
[333397108,1722103845201,-500.0,0.00010999,2]
[333397109,1722103845210,-400.59,0.00010999,2]
[333397110,1722103845220,-500.0,0.00010999,2]
[333397111,1722103845229,-500.0,0.00010999,2]
[333397112,1722103845239,-155.46,0.00010999,2]
[333397113,1722103845248,-500.0,0.00010999,2]
[333397114,1722103845258,-500.0,0.00010999,2]
[333397115,1722103845268,-500.0,0.00010999,2]
[333397116,1722103845278,-500.0,0.00010999,2]
[333397117,1722103845287,-500.0,0.00010999,2]
[333397118,1722103845298,-578.32,0.00010999,2]
[333397119,1722103845307,-500.0,0.00010999,2]
[333397120,1722103845317,-500.0,0.00010999,2]
[333397121,1722103845327,-353.87,0.00010999,2]
[333397122,1722103845336,-606.77,0.00010999,2]
[333397123,1722103845345,-500.0,0.00010999,2]
[333397124,1722103845355,-500.0,0.00010999,2]
[333397125,1722103845364,-500.0,0.00010999,2]
[333397126,1722103845374,-500.0,0.00010999,2]
[333397127,1722103845384,-500.0,0.00010999,2]
[333397128,1722103845394,-500.0,0.00010999,2]
[333397129,1722103845403,-500.0,0.00010999,2]
[333397130,1722103845413,-500.0,0.00010999,2]
[333397131,1722103845422,-500.0,0.00010999,2]
[333397132,1722103845432,-500.0,0.00010999,2]
[333397133,1722103845441,-560.81,0.00010999,2]
[333397134,1722103845451,-500.0,0.00010999,2]
[333397135,1722103845460,-500.0,0.00010999,2]
[333397136,1722103845469,-420.94,0.00010999,2]
[333397138,1722103845478,-500.0,0.00010999,2]
[333397140,1722103845488,-500.0,0.00010999,2]
[333397141,1722103845497,-500.0,0.00010999,2]
[333397143,1722103845507,-500.0,0.00010999,2]
[333397144,1722103845516,-500.0,0.00010999,2]
[333397145,1722103845525,-500.0,0.00010999,2]
[333397146,1722103845534,-553.66,0.00010999,2]
[333397147,1722103845544,-500.0,0.00010999,2]
[333397149,1722103845553,-500.0,0.00010999,2]
[333397152,1722103845563,-500.0,0.00010999,2]
[333397155,1722103845572,-192.31,0.00010999,2]
[333397158,1722103845581,-500.0,0.00010999,2]
[333397160,1722103845591,-500.0,0.00010999,2]
[333397162,1722103845600,-500.0,0.00010999,2]
[333397164,1722103845609,-500.0,0.00010999,2]
[333397166,1722103845619,-500.0,0.00010999,2]
[333397168,1722103845628,-500.0,0.00010999,2]
[333397170,1722103845637,-500.0,0.00010999,2]
[333397172,1722103845647,-500.0,0.00010999,2]
[333397174,1722103845656,-500.0,0.00010999,2]
[333397176,1722103845668,-543.67,0.00010999,2]
[333397177,1722103845679,-215.82,0.00010999,2]
[333397179,1722103845689,-500.0,0.00010999,2]
[333397181,1722103845698,-500.0,0.00010999,2]
[333397184,1722103845708,-500.0,0.00010999,2]
[333397185,1722103845718,-500.0,0.00010999,2]
[333397187,1722103845727,-500.0,0.00010999,2]
[333397189,1722103845737,-500.0,0.00010999,2]
[333397191,1722103845747,-500.0,0.00010999,2]
[333397193,1722103845758,-500.0,0.00010999,2]
[333397195,1722103845768,-500.0,0.00010999,2]
[333397196,1722103845778,-500.0,0.00010999,2]
[333397197,1722103845788,-469.75,0.00010999,2]
[333397198,1722103845797,-197.69,0.00010999,2]
[333397200,1722103845807,-500.0,0.00010999,2]
[333397202,1722103845816,-164.71,0.00010999,2]
[333397204,1722103845826,-500.0,0.00010999,2]
[333397206,1722103845835,-500.0,0.00010999,2]
[333397208,1722103845846,-500.0,0.00010999,2]
[333397210,1722103845856,-500.0,0.00010999,2]
[333397212,1722103845866,-500.0,0.00010999,2]
[333397214,1722103845876,-408.49,0.00010999,2]
[333397216,1722103845885,-500.0,0.00010999,2]
[333397218,1722103845895,-500.0,0.00010999,2]
[333397220,1722103845904,-500.0,0.00010999,2]
[333397222,1722103845914,-500.0,0.00010999,2]
[333397224,1722103845926,-500.0,0.00010999,2]
[333397226,1722103845936,-500.0,0.00010999,2]
[333397228,1722103845945,-500.0,0.00010999,2]
[333397230,1722103845955,-500.0,0.00010999,2]
[333397232,1722103845965,-370.25,0.00010999,2]
[333397233,1722103845975,-500.0,0.00010999,2]
[333397236,1722103845985,-505.46,0.00010999,2]
[333397237,1722103845995,-500.0,0.00010999,2]
[333397239,1722103846004,-500.0,0.00010999,2]
[333397241,1722103846014,-340.99,0.00010999,2]
[333397243,1722103846023,-500.0,0.00010999,2]
[333397245,1722103846033,-500.0,0.00010999,2]
[333397247,1722103846043,-348.2,0.00010999,2]
[333397249,1722103846053,-611.72,0.00010999,2]
[333397251,1722103846064,-500.0,0.00010999,2]
[333397253,1722103846074,-500.0,0.00010999,2]
[333397255,1722103846084,-500.0,0.00010999,2]
[333397257,1722103846093,-500.0,0.00010999,2]
[333397259,1722103846103,-500.0,0.00010999,2]
[333397261,1722103846113,-500.0,0.00010999,2]
[333397263,1722103846124,-500.0,0.00010999,2]
[333397265,1722103846133,-254.77,0.00010999,2]
[333397267,1722103846142,-500.41804639,0.00010999,2]
[333397269,1722103846152,-500.0,0.00010999,2]
[333397271,1722103846161,-500.0,0.00010999,2]
[333397273,1722103846171,-500.0,0.00010999,2]
[333397275,1722103846182,-500.0,0.00010999,2]
[333397277,1722103846192,-500.0,0.00010999,2]
[333397279,1722103846201,-500.0,0.00010999,2]
[333397280,1722103846210,-494.80247355,0.00010999,2]
[333397282,1722103846220,-500.0,0.00010999,2]
[333397284,1722103846229,-500.0,0.00010999,2]
[333397285,1722103846239,-500.0,0.00010999,2]
[333397286,1722103846248,-500.0,0.00010999,2]
[333397287,1722103846258,-500.0,0.00010999,2]
[333397288,1722103846267,-500.0,0.00010999,2]
[333397289,1722103846276,-500.0,0.00010999,2]
[333397290,1722103846286,-451.81,0.00010999,2]
[333397291,1722103846295,-500.0,0.00010999,2]
[333397292,1722103846306,-281.67715014,0.00010999,2]
[333397293,1722103846315,-500.0,0.00010999,2]
[333397294,1722103846326,-500.0,0.00010999,2]
[333397295,1722103846336,-500.0,0.00010999,2]
[333397296,1722103846345,-500.0,0.00010999,2]
[333397297,1722103846355,-606.52996066,0.00010999,2]
[333397298,1722103846365,-500.0,0.00010999,2]
[333397299,1722103846374,-500.0,0.00010999,2]
[333397300,1722103846383,-500.0,0.00010999,2]
[333397301,1722103846394,-500.0,0.00010999,2]
[333397302,1722103846403,-317.56762843,0.00010999,2]
[333397303,1722103846413,-500.0,0.00010999,2]
[333397304,1722103846423,-500.0,0.00010999,2]
[333397305,1722103846433,-500.0,0.00010999,2]
[333397306,1722103846443,-291.91,0.00010999,2]
[333397307,1722103846453,-500.0,0.00010999,2]
[333397308,1722103846463,-500.0,0.00010999,2]
[333397309,1722103846472,-500.0,0.00010999,2]
[333397310,1722103846482,-500.0,0.00010999,2]
[333397311,1722103846491,-254.18620487,0.00010999,2]
[333397312,1722103846501,-500.0,0.00010999,2]
[333397313,1722103846511,-500.0,0.00010999,2]
[333397314,1722103846522,-500.0,0.00010999,2]
[333397315,1722103846532,-152.96,0.00010999,2]
[333397316,1722103846542,-500.0,0.00010999,2]
[333397317,1722103846552,-500.0,0.00010999,2]
[333397318,1722103846562,-376.36766533,0.00010999,2]
[333397319,1722103846572,-500.0,0.00010999,2]
[333397320,1722103846581,-500.0,0.00010999,2]
[333397321,1722103846591,-500.0,0.00010999,2]
[333397322,1722103846601,-500.0,0.00010999,2]
[333397323,1722103846610,-500.0,0.00010999,2]
[333397324,1722103846620,-500.0,0.00010999,2]
[333397325,1722103846630,-500.0,0.00010999,2]
[333397326,1722103846640,-500.0,0.00010999,2]
[333397327,1722103846650,-500.0,0.00010999,2]
[333397328,1722103846661,-500.0,0.00010999,2]
[333397329,1722103846672,-354.9,0.00010999,2]
[333397330,1722103846684,-195.38,0.00010999,2]
[333397331,1722103846694,-500.0,0.00010999,2]
[333397332,1722103846704,-500.0,0.00010999,2]
[333397333,1722103846714,-500.0,0.00010999,2]
[333397334,1722103846723,-500.0,0.00010999,2]
[333397335,1722103846732,-457.81,0.00010999,2]
[333397336,1722103846742,-500.0,0.00010999,2]
[333397337,1722103846752,-284.87799233,0.00010999,2]
[333397338,1722103846762,-500.0,0.00010999,2]
[333397339,1722103846772,-427.6,0.00010999,2]
[333397340,1722103846781,-500.0,0.00010999,2]
[333397341,1722103846790,-500.0,0.00010999,2]
[333397342,1722103846800,-500.0,0.00010999,2]
[333397343,1722103846809,-500.0,0.00010999,2]
[333397344,1722103846819,-500.0,0.00010999,2]
[333397345,1722103846828,-172.42582263,0.00010999,2]
[333397346,1722103846880,-500.0,0.00010999,2]
[333397347,1722103846889,-158.47631155,0.00010999,2]
[333397348,1722103846898,-500.0,0.00010999,2]
[333397349,1722103846908,-290.35379009,0.00010999,2]
[333397350,1722103846917,-212.45,0.00010999,2]
[333397351,1722103846927,-500.0,0.00010999,2]
[333397352,1722103846937,-553.23,0.00010999,2]
[333397353,1722103846946,-599.96,0.00010999,2]
[333397354,1722103846956,-500.0,0.00010999,2]
[333397355,1722103846965,-500.0,0.00010999,2]
[333397356,1722103846974,-500.0,0.00010999,2]
[333397357,1722103846983,-500.0,0.00010999,2]
[333397358,1722103846992,-500.0,0.00010999,2]
[333397359,1722103847002,-500.0,0.00010999,2]
[333397360,1722103847018,-500.0,0.00010999,2]
[333397361,1722103847028,-573.12602162,0.00010999,2]
[333397362,1722103847037,-500.0,0.00010999,2]
[333397363,1722103847047,-333.24,0.00010999,2]
[333397364,1722103847056,-500.0,0.00010999,2]
[333397365,1722103847065,-599.0,0.00011,2]
[333397366,1722103847075,-95223.53381648,0.00011,2]
[333397367,1722103847308,-615.91813018,0.00011,2]
[333397368,1722103847320,-1300.57762487,0.00011,2]
[333397369,1722103847385,-2988.15958247,0.00011,2]
[333397370,1722103847396,-37277.37337114,0.00011,2]
[333397371,1722103847406,-4587.9142376,0.00011,2]
[333397372,1722103847417,-2425.04959483,0.00011,2]
[333397373,1722103847428,-1968.40098272,0.00011,2]
[333397374,1722103847439,-4758.83315236,0.00011,2]
[333397375,1722103847450,-1069.43002949,0.00011,2]
[333397376,1722103847460,-612.67,0.00011,2]
[333397377,1722103847471,-2836.5862804,0.00011,2]
[333397378,1722103847482,-1041.17810398,0.00011,2]
[333397379,1722103847493,-9789.77510328,0.00011,2]
[333397380,1722103847503,-281.00881241,0.00011,2]
[333397381,1722103847514,-2990.50036596,0.00011,2]
[333397382,1722103847525,-360.86296168,0.00011,2]
[333397383,1722103847536,-12331.1541488,0.00011,2]
[333397384,1722103847547,-539.64431596,0.00011,2]
[333397385,1722103847558,-3458.41330043,0.00011,2]
[333397396,1722104322195,156.38,0.000149,31]
[333397397,1722104322497,156.38,0.000149,31]
[333397398,1722104322533,156.38,0.000149,31]
[333397399,1722104322578,156.38,0.000149,31]
[333397400,1722104322613,156.38,0.000149,31]
[333397421,1722104755689,23444.43721347,6.94e-05,2]
[333397428,1722104796118,155.0,6.94e-05,2]
[333397429,1722104799251,1369.83582042,6.94e-05,2]
[333397430,1722104800955,188.0,6.94e-05,4]
[333397431,1722104806067,291.272292,6.94e-05,2]
[333397433,1722104814552,305.0,6.94e-05,2]
[333397434,1722104815284,235953.53403738,6.94e-05,2]
[333397437,1722104820321,870.63292453,6.94e-05,2]
[333397439,1722104831412,20368.93388545,6.94e-05,2]
[333397442,1722104837390,305.40117997,6.94e-05,2]
[333397443,1722104844567,1222.30541732,6.94e-05,2]
[333397449,1722104852279,155.0,6.94e-05,2]
[333397455,1722104874205,1246.26070816,6.94e-05,2]
[333397458,1722104906024,291.04571172,6.94e-05,2]
[333397459,1722104913981,188.0,6.94e-05,4]
[333397461,1722104925223,156.41,0.000149,31]
[333397462,1722104925348,156.41,0.000149,31]
[333397463,1722104925407,156.41,0.000149,31]
[333397464,1722104925463,156.41,0.000149,31]
[333397466,1722104941019,155.049329,6.94e-05,2]
[333397467,1722104942361,9961.75729198,6.94e-05,2]
[333397469,1722104993996,188.0,6.94e-05,4]
[333397491,1722105031956,-986.52,8.219e-05,2]
[333397492,1722105031965,-162.17,8.219e-05,2]
[333397493,1722105031976,-280.0,8.411e-05,2]
[333397494,1722105031986,-263.64923625,8.411e-05,2]
[333397495,1722105032000,-36.35076375,8.411e-05,2]
[333397496,1722105032015,-150.0,8.411e-05,2]
[333397497,1722105032026,-155.0,8.412e-05,2]
[333397498,1722105032035,-203.79981828,8.412e-05,2]
[333397499,1722105033162,-3834.18185265,8.412e-05,2]
[333397500,1722105033174,-966.20698243,8.412e-05,2]
[333397501,1722105033242,-20284.51717558,8.412e-05,2]
[333397502,1722105033319,-439.31165615,8.412e-05,2]
[333397503,1722105033413,-69072.22764709,8.412e-05,2]
[333397504,1722105033425,-313.57105066,8.412e-05,2]
[333397505,1722105033512,-67857.84646865,8.412e-05,2]
[333397506,1722105033522,-13629.93097852,8.991e-05,2]
[333397513,1722105037912,-188.0,8.412e-05,4]
[333397514,1722105037921,-654.47852763,8.991e-05,2]
[333397515,1722105037933,-598.24,8.991e-05,2]
[333397516,1722105038028,-428.61941707,8.991e-05,2]
[333397517,1722105038060,-2373.61805098,8.991e-05,2]
[333397518,1722105038072,-2980.5130258,8.991e-05,2]
[333397519,1722105038082,-708.61,8.995e-05,2]
[333397520,1722105038092,-1886.67673684,9e-05,2]
[333397521,1722105038102,-908.33,9.034e-05,2]
[333397522,1722105038111,-1000.0,9.034e-05,2]
[333397523,1722105038121,-3896.69,9.081e-05,2]
[333397524,1722105038129,-208.72,9.086e-05,2]
[333397525,1722105038139,-345.26,9.11e-05,2]
[333397526,1722105038149,-420.0,9.252e-05,2]
[333397527,1722105038158,-255.0,9.252e-05,2]